Workbook

Sheet Data input
B1: HaulCost 22.0 - TRUCKING APPRAISAL - DATA INPUT
B2: April 10, 2023 - Microsoft Excel
C4: Sale name | E4: Volume type | F4: Geographic area | G4: Date | H4: Appraisal point
C7: Sale RTM's <traveling> <only> | D7: Avg volume per load | E7: Is scaling done? | F7: Inflate costs? | G7: Fuel cost per gallon | H7: One-way trip mileage
AJ9: Labor rates…
B10: Select truck or Truck-trailer combo | E10: Select trailer | G10: Select attached loader | AJ10: State | AK10: Rate/hr
AC11: Vol type | AD11: Inflate/Scale | AJ11: AL | AK11: 31.33
AC12: CCF | AD12: No | AJ12: AK | AK12: 45.74
E13: =IF(OR(AF27=1,AF27=2),"<<Trailer selection not needed w/stinger-steer>>",0) -> 0 | G13: =IF(OR(AF27=1,AF27=2),"<<Loader selection not needed w/stringer-steer>>",0) -> 0 | AC13: MBF | AD13: Yes | AJ13: AR | AK13: 28.85
AJ14: AZ | AK14: 33.65
AD15: Current default rtm's: | AE15: 1 | AJ15: CA | AK15: 33.11
AJ16: CO | AK16: 32.46
AB17: Trailer options | AC17: Trucks | AF17: Index | AG17: Cost | AH17: Tires | AJ17: CT | AK17: 37.9
AB18: NT | AC18: Truck-trailer (standard stinger-steer, west US) | AF18: 1 | AG18: 250000 | AH18: 18 | AJ18: DE | AK18: 38.33
AB19: NT | AC19: Truck-trailer (self-loading, standard stinger-steer, west US) | AF19: 2 | AG19: 300000 | AH19: 18 | AJ19: FL | AK19: 21.92
AB20: T | AC20: Truck (with 5th wheel, needs trailer) | AF20: 3 | AG20: 150000 | AH20: 10 | AJ20: GA | AK20: 33.22
AB21: TO | AC21: Truck-tractor (3 axles, tandom axle, trailer optional) | AF21: 4 | AG21: 175000 | AH21: 10 | AJ21: HI | AK21: 30.39
AB22: TO | AC22: Truck-tractor (4 axles, tri axle, trailer optional) | AF22: 5 | AG22: 190000 | AH22: 14 | AJ22: IA | AK22: 37.88
AB23: TO | AC23: Truck-tractor (5 axles, trailer optional) | AF23: 6 | AG23: 230000 | AH23: 18 | AJ23: ID | AK23: 33.17
AB24: TO | AC24: Truck-tractor (6 axles, R9, trailer optional) | AF24: 7 | AG24: 260000 | AH24: 22 | AJ24: IL | AK24: 38.71
AB25: TO | AC25: Truck-tractor (7 axles, trailer optional) | AF25: 8 | AG25: 270000 | AH25: 20 | AJ25: IN | AK25: 32.93
AC26: <Not used> | AF26: 9 | AG26: 0 | AH26: 0 | AJ26: KS | AK26: 43.48
AE27: Current truck index = | AF27: =IF(ISERROR(VLOOKUP(B11,AC18:AF26,4,FALSE)),10,VLOOKUP(B11,AC18:AF26,4,FALSE)) -> 9 | AG27: 58492.928 | AJ27: KY | AK27: 36.56
AJ28: LA | AK28: 38.69
AC29: Trailers | AF29: Index | AG29: Cost | AH29: Tires | AJ29: MA | AK29: 31.78
AC30: <None> | AF30: 1 | AG30: 0 | AH30: 0 | AJ30: MD | AK30: 32.58
AC31: Trailer-pup, (2 axles) | AF31: 2 | AG31: 50000 | AH31: 8 | AJ31: ME | AK31: 24.11
AC32: Trailer (3 axles) | AF32: 3 | AG32: 70000 | AH32: 12 | AJ32: MI | AK32: 30.44
AC33: Trailer–crib (3 axles) | AF33: 4 | AG33: 70000 | AH33: 12 | AJ33: MN | AK33: 33.31
AC34: Trailer (5 axles) | AF34: 5 | AG34: 90000 | AH34: 20 | AJ34: MO | AK34: 41.35
AC35: Trailer–crib (7 axles) | AF35: 6 | AG35: 120000 | AH35: 28 | AJ35: MS | AK35: 34.59
AC36: Chip Van | AF36: 7 | AG36: 50000 | AH36: 8 | AJ36: MT | AK36: 33.18
AC37: <Not used> | AF37: 8 | AG37: 0 | AH37: 0 | AJ37: NC | AK37: 23.85
AC38: <Not used> | AF38: 9 | AG38: 0 | AH38: 0 | AJ38: ND | AK38: 34.74
AC39: <Not used> | AF39: 10 | AG39: 0 | AH39: 0 | AJ39: NE | AK39: 32.6
AC40: <Not used> | AF40: 11 | AG40: 0 | AH40: 0 | AJ40: NH | AK40: 33.28
AE41: Current trailer index = | AF41: =IF(ISERROR(VLOOKUP(E11,AC30:AF40,4,FALSE)),12,VLOOKUP(E11,AC30:AF40,4,FALSE)) -> 11 | AJ41: NJ | AK41: 34.54
AJ42: NM | AK42: 34.64
AC43: Detachable loaders | AF43: Index | AG43: Cost | AJ43: NV | AK43: 31.23
AC44: <None> | AF44: 1 | AG44: 0 | AJ44: NY | AK44: 33.37
AC45: Detachable loader (small, east US) | AF45: 2 | AG45: 51935.01911 | AJ45: OH | AK45: 37.65
AC46: Detachable loader (large, east US) | AF46: 3 | AG46: 66583.61739 | AJ46: OK | AK46: 33.21
AC47: <Not used> | AF47: 4 | AG47: 0 | AJ47: OR | AK47: 37.81
AC48: <Not used> | AF48: 5 | AG48: 0 | AJ48: PA | AK48: 34.93
AE49: Current self-loader index = | AF49: =IF(ISERROR(VLOOKUP(G11,AC44:AF48,4,FALSE)),6,VLOOKUP(G11,AC44:AF48,4,FALSE)) -> 5 | AJ49: RI | AK49: 36.89
AJ50: SC | AK50: 31.06
AJ51: SD | AK51: 30.5
AJ52: TN | AK52: 48.74
AJ53: TX | AK53: 22.93
AJ54: UT | AK54: 33.41
AJ55: VA | AK55: 38.41
AJ56: VT | AK56: 31.46
AJ57: WA | AK57: 31.9
AJ58: WI | AK58: 38.64
AJ59: WV | AK59: 31.93
AJ60: WY | AK60: 32.39
A1000: berger00

Sheet Cost defaults
B1: TRUCKING APPRAISAL - COST DEFAULTS
B2: HaulCost ver 22.0
B4: Sale Name: | D4: Geographic Area: | F4: Date:
B5: =IF(ISTEXT('Data input'!$C$5),'Data input'!$C$5,"") ->  | D5: =IF(ISTEXT('Data input'!F5),'Data input'!F5,"") ->  | F5: =IF('Data input'!$G$5>0,'Data input'!$G$5,"") -> 
B7: Inflation rate | C7: # Years to Inflate | D7: Scale cost per unit vol | E7: ="Truck cost"&IF(OR('Data input'!AF49=2,'Data input'!AF49=3,'Data input'!AF27=2)," (w/loader)","") -> Truck cost | F7: Trailer cost | G7: Hours per day
B8: =C14 ->  | C8: =E19 ->  | D8: =C15 ->  | E8: =C16 -> 0 | F8: =C17 -> 0 | G8: =C18 -> 10
B10: Standing rtm's | C10: Not used | D10: Operator labor rate | E10: Overhead rate | F10: PUC tax wt-mile | G10: Scaling defect
B11: =C19 -> 65 | D11: =E15 -> 0 | E11: =E16 -> 0.1 | F11: =E17 -> 0.21 | G11: =E18 -> 
AA12: Scale | AB12: Inflate | AC12: Type | AD12: Type2
B13: Original Defaults Used In Above Table | G13: Volume Type: | AA13: =IF(AND(ISTEXT('Data input'!E8),'Data input'!E8="Yes"),1,0) -> 0 | AB13: =IF(AND(ISTEXT('Data input'!F8),'Data input'!F8="Yes"),1,0) -> 0 | AC13: =IF(ISTEXT('Data input'!E5),IF('Data input'!E5="MBF",1,2),0) -> 0 | AD13: =IF(ISTEXT('Data input'!E5),IF('Data input'!E5="MBF",1,2),3) -> 3
B14: inflation rate/yr | C14: =IF(AB13=1,0.04,"") ->  | G14: =IF(ISTEXT('Data input'!$E$5),'Data input'!$E$5,"") -> 
B15: scale cost per uom | C15: =IF(AND(AA13=1,AC13=1),9.86,IF(AND(AA13=1,AC13=2),4.28,"")) ->  | D15: =IF(ISTEXT('Data input'!F5),"labor rate ("&'Data input'!F5&")","labor rate (none)") -> labor rate (none) | E15: =IF(ISTEXT('Data input'!F5),VLOOKUP('Data input'!F5,'Data input'!AJ11:AK60,2,FALSE),0) -> 0 | AC15: Type | AD15: Cost
B16: ="truck cost"&IF(OR('Data input'!AF49=2,'Data input'!AF49=3,'Data input'!AF27=2)," (w/loader)","") -> truck cost | C16: =AD16 -> 0 | D16: overhead rate | E16: 0.1 | G16: Appraisal point: | AC16: Truck | AD16: =CHOOSE('Data input'!AF27,'Data input'!AG18,'Data input'!AG19,'Data input'!AG20,'Data input'!AG24,'Data input'!AG22,'Data input'!AG21,'Data input'!AG23,'Data input'!AG25,'Data input'!AG26,0)+CHOOSE('Data input'!AF49,'Data input'!AG44,'Data input'!AG45,'Data input'!AG46,'Data input'!AG47,'Data input'!AG48,0) -> 0
B17: trailer cost | C17: =AD17 -> 0 | D17: puc tax, $/mi | E17: 0.21 | G17: =IF(ISTEXT('Data input'!$H$5),'Data input'!$H$5,"") ->  | AC17: Trailer | AD17: =IF(OR('Data input'!AF27=1,'Data input'!AF27=2),'Data input'!AG27,CHOOSE('Data input'!AF41,'Data input'!AG30,'Data input'!AG31,'Data input'!AG32,'Data input'!AG33,'Data input'!AG34,'Data input'!AG35,'Data input'!AG36,,'Data input'!AG37,'Data input'!AG38,'Data input'!AG39,'Data input'!AG40,0)) -> 0
B18: haul hrs/day | C18: 10 | D18: scaling defect | E18: =IF(AA13=1,0.05,"") -> 
B19: ="standing rtm's "&IF('Data input'!E8="Yes","w/scale", "no scale") -> standing rtm's w/scale | C19: =IF(AND(ISTEXT('Data input'!E8),'Data input'!E8="Yes"),85,65) -> 65 | D19: years to inflate | E19: =IF(AB13=1,1,"") -> 

Sheet O_O cost
B1: TRUCKING APPRAISAL - OWNING & OPERATING COST
B2: ='Cost defaults'!B2 -> HaulCost ver 22.0 | AB2: Fuel & Lube Table…
AB3: Lube Cost | AC3: Miles | AD3: Fuel | AE3: Fuel Cost | AF3: Lube Use | AG3: Lube Cost | AH3: Tot Fuel
C4: Sale name: | D4: =IF(ISTEXT('Data input'!$C$5),'Data input'!$C$5,"") ->  | G4: Geo. Area: | H4: =IF(ISTEXT('Data input'!F5),'Data input'!F5,"") ->  | J4: Appraisal point: | K4: =IF(ISTEXT('Data input'!H5),'Data input'!H5,"") ->  | M4: Date: | N4: =IF('Data input'!$G$5>0,'Data input'!$G$5,"") ->  | AB4: Per Gal | AC4: Per Month | AD4: Mileage | AE4: Per Mile | AF4: Gal/Month | AG4: Per Mile | AH4: Lube/Mile
AB5: 20 | AC5: =AC12/11 -> 3272.727273 | AD5: 7.5 | AE5: =IF(AD5>0,'Data input'!G8/AD5,0) -> 0 | AF5: 1 | AG5: =IF(AB5>0,AF5*AB5/AC5,0) -> 0.006111111111 | AH5: =AG5+AE5 -> 0.006111111111
B6: Ownership Cost, $/hour... | AH6: per mile
B7: Equipment type | C7: Equipment cost | D7: Season -weeks | E7: Hours per day | F7: Days per week | G7: Hours per year | H7: Salvage % | I7: Life-years | J7: AAI | K7: Ins, tax, lic - % | L7: Trailer damage-% | M7: Federal HVUT | N7: Total cost per hour
AB8: Maint & Repair Table… | AE8: Total Maint & Repair Cost - $/Mi | AH8: =ROUND(AE12+AJ12+AM12+AP12+AS12+AU12+AY12/2,2) -> 0.36 | AI8: truck | AK8: Total Maint & Repair Cost - $/Mi | AN8: 0.08 | AO8: trailer
B9: Truck | C9: ='Cost defaults'!E8-C11 -> 0 | D9: 40 | E9: ='Cost defaults'!$G$8 -> 10 | F9: 5 | G9: =F9*E9*D9 -> 2000 | H9: 0.2 | I9: 8 | J9: =(C9-H9*C9)*(I9+1)/(2*I9)+H9*C9 -> 0 | K9: 0.1 | L9: 0 | M9: 412.5 | N9: =((C9-(H9*C9)+M9)/I9+K9*J9)/G9 -> 0.02578125 | AC9: Truck | AD9: Weekly Service (48 wks) | AF9: Seven Week Service | AK9: Engine Rebuild | AN9: Transmission Replace | AQ9: Rear End Replace | AT9: Suspension Service | AW9: Brakes Replace
B10: Trailer | C10: ='Cost defaults'!F8 -> 0 | D10: 40 | E10: ='Cost defaults'!$G$8 -> 10 | F10: 5 | G10: =F10*E10*D10 -> 2000 | H10: 0.2 | I10: 6 | J10: =(C10-H10*C10)*(I10+1)/(2*I10)+H10*C10 -> 0 | K10: 0.05 | L10: 0.05 | M10: 0 | N10: =((C10-(H10*C10)+M10)/I10+K10*J10+L10*J10)/G10 -> 0 | AB10: Shop | AC10: Miles Per | AD10: Min Per | AE10: $'s Per | AF10: Oil Change | AG10: Filter | AH10: Shop | AI10: Oil Sample | AJ10: $'s Per | AK10: Rebuild | AL10: Rebuild | AM10: $'s Per | AN10: Replace | AO10: Replace | AP10: $'s Per | AQ10: Replace | AR10: Replace | AS10: $'s Per | AT10: Service | AU10: Truck | AV10: Trailer | AW10: Replace | AX10: Replace | AY10: $'s Per
B11: Attach loader | C11: =CHOOSE('Data input'!AF49,'Data input'!AG44,'Data input'!AG45,'Data input'!AG46,'Data input'!AG47,'Data input'!AG48,0) -> 0 | D11: 40 | E11: ='Cost defaults'!$G$8 -> 10 | F11: 5 | G11: =F11*E11*D11 -> 2000 | H11: 0.2 | I11: 6 | J11: =(C11-H11*C11)*(I11+1)/(2*I11)+H11*C11 -> 0 | K11: 0.05 | L11: 0 | M11: 0 | N11: =((C11-(H11*C11)+M11)/I11+K11*J11+L11*J11)/G11 -> 0 | AB11: Labor/Hour | AC11: Year (11 mo) | AD11: Truck | AE11: Mile | AF11: Gallons | AG11: Cost | AH11: Labor Hrs | AI11: Exam-$'s | AJ11: Mile | AK11: Miles | AL11: Cost | AM11: Mile | AN11: Miles | AO11: Cost | AP11: Mile | AQ11: Miles | AR11: Cost | AS11: Mile | AT11: Miles | AU11: Cost/Mi | AV11: Cost/Mi | AW11: Miles | AX11: Cost | AY11: Mile
C12: Labor Cost, $/hour... | H12: Truck Operating (Opr) Cost, $/mile... | N12: =SUM(N9:N11) -> 0.02578125 | AB12: 40 | AC12: 36000 | AD12: 60 | AE12: =AD12/60*AB12/AC12*48 -> 0.05333333333 | AF12: 11 | AG12: 50 | AH12: 2 | AI12: 15 | AJ12: =(AF12*AB5+AG12+AH12*AB12+AI12)*51/7/AC12 -> 0.07386904762 | AK12: 200000 | AL12: 15000 | AM12: =AL12/AK12 -> 0.075 | AN12: 400000 | AO12: 40000 | AP12: =AO12/AN12 -> 0.1 | AQ12: 400000 | AR12: 8000 | AS12: =AR12/AQ12 -> 0.02 | AT12: 200000 | AU12: =(1500+(16*AB12))/AT12 -> 0.0107 | AV12: =(250+4*AB12)/AT12 -> 0.00205 | AW12: 30000 | AX12: 1500 | AY12: =AX12/AW12 -> 0.05
C13: Labor type | D13: Rate per hour | E13: Overhead inflator | F13: Total labor $/hour | H13: Fuel & lube/mi | I13: Tire cost per mile | J13: Maint & repair/mi | K13: PUC tax wt per mile | L13: Total cost per mile
AB14: Total Maint & Repair Cost - $/Mi | AE14: 0.4 | AF14: truck
C15: Straight time | D15: ='Cost defaults'!D11 -> 0 | E15: =1+'Cost defaults'!E11 -> 1.1 | F15: =E15*D15 -> 0 | H15: =AH5 -> 0.006111111111 | I15: =AD24 -> 0 | J15: =IF(C9=0,0,AE16) -> 0 | K15: =IF(C9=0,0,'Cost defaults'!F11) -> 0 | L15: =SUM(H15:K15) -> 0.006111111111 | AB15: Total Maint & Repair Cost - $/Mi | AE15: 0.1 | AF15: trailer
C16: Overtime | D16: =D15*1.5 -> 0 | E16: =1+'Cost defaults'!E11 -> 1.1 | F16: =E16*D16 -> 0 | AB16: Total Maint & Repair Cost - $/Mi | AE16: =AE15+AE14 -> 0.5 | AF16: total
H17: Mi/trip | I17: Trips | J17: Tot miles | K17: Mi for puc | L17: Tot opr cost | M17: Opr cost/hr | AB17: Tire Table…
H18: ='Data input'!H8*2 -> 0 | I18: =IF(increment>0,(60*'Cost defaults'!G8)/(increment+rtm),0) -> 0 | J18: =I18*H18 -> 0 | K18: =J18/2 -> 0 | L18: =(J18*L15-K18*K15) -> 0 | M18: =IF('Cost defaults'!G8>0,L18/'Cost defaults'!G8,0) -> 0 | AB18: Cost New | AC18: Cost | AD18: Total | AE18: Number | AF18: Number | AG18: Tire Life | AH18: Tire Repair | AI18: Total Tire | AJ18: Total Tire
C19: Total Owning, Operating Cost & Labor Cost... | AB19: Tire | AC19: Recap (2) | AD19: Cost/Tire | AE19: Tires-truck | AF19: Tires-trailer | AG19: Miles | AH19: Percent | AI19: $/Mile-truck | AJ19: $/Mile-trailer
C20: Cost type | D20: Straight time $/hr | E20: Overtime $/hour | F20: Straight time $/min | G20: Overtime $/minute | H20: Notes | AB20: 500 | AC20: 0 | AD20: =AC20+AB20 -> 500 | AE20: =CHOOSE('Data input'!AF27,'Data input'!AH18-8,'Data input'!AH19,'Data input'!AH20,'Data input'!AH24,'Data input'!AH22,'Data input'!AH21,'Data input'!AH23,'Data input'!AH25,'Data input'!AH26,0) -> 0 | AF20: =IF(OR('Data input'!AF27=1,'Data input'!AF27=2),8,CHOOSE('Data input'!AF41,'Data input'!AH30,'Data input'!AH31,'Data input'!AH32,'Data input'!AH33,'Data input'!AH34,'Data input'!AH35,'Data input'!AH36,'Data input'!AH37,'Data input'!AH38,'Data input'!AH39,'Data input'!AH40,0)) -> 0 | AG20: 30000 | AH20: 0 | AI20: =ROUND((AE20*AD20/(AG20))*(1+AH20),2) -> 0 | AJ20: =ROUND(AF20*AD20/(AG20)*(1+AH20),2) -> 0
C22: Standing | D22: =F15+N12 -> 0.02578125 | E22: =F16+N12 -> 0.02578125 | F22: =D22/60 -> 0.0004296875 | G22: =E22/60 -> 0.0004296875 | H22: ownership + labor costs | AB22: Total Tire Cost - $/MI | AD22: =AI20 -> 0 | AE22: truck | AG22: Overtime…
C23: Traveling | D23: =D22+M18 -> 0.02578125 | E23: =E22+M18 -> 0.02578125 | F23: =D23/60 -> 0.0004296875 | G23: =E23/60 -> 0.0004296875 | H23: ownership + labor + operating costs | AB23: Total Tire Cost - $/MI | AD23: =AJ20 -> 0 | AE23: trailer | AG23: ='Cost defaults'!G8-8 -> 2
D24: Average standing | F24: =IF(AND('Cost defaults'!G8>0,increment>0),(F22*(8)+G22*(AG24))/'Cost defaults'!G8,0) -> 0 | G24: ($/min) | H24: ownership + labor costs | AB24: Total Tire Cost - $/MI | AD24: =AD23+AD22 -> 0 | AE24: total | AG24: =IF(AG23>0,AG23,0) -> 2
D25: Average traveling | F25: =IF(AND('Cost defaults'!G8>0,increment>0),(F23*(8)+G23*(AG24))/'Cost defaults'!G8,0) -> 0 | G25: ($/min) | H25: ownership + labor + operating costs
D26: Wt. average combined | F26: =IF(increment>0,((F25*(increment))+(F24*rtm))/(increment+rtm),0) -> 0 | G26: ($/min) | H26: ="avg $/"&IF('Data input'!E5="MBF","mbf-min","ccf-min")&"="&TEXT(IF('Data input'!$D$8>0,F26/'Data input'!$D$8,0),"0.0000")&", "&TEXT(IF('Data input'!$D$8>0,(F26/'Data input'!$D$8)*('Data input'!C8+'Cost defaults'!B11)*'Data input'!D8,0),"$0,0.00")&" cost per trip" -> avg $/mbf-min=0.0000, $00.00 cost per trip
J27: =TEXT(I18,"0.000")&" total trips" -> 0.000 total trips

Sheet Appr Sum
B1: TRUCKING APPRAISAL - APPRAISAL SUMMARY
B2: ='Cost defaults'!B2 -> HaulCost ver 22.0
B4: Sale name: | C4: =IF(ISTEXT('Data input'!$C$5),'Data input'!$C$5,"") ->  | F4: Geo. area: | G4: =IF(ISTEXT('Data input'!F5),'Data input'!F5,"") ->  | J4: Date: | K4: =IF('Data input'!$G$5>0,'Data input'!$G$5,"") -> 
B6: Cost type | C6: Average trip rtm's | D6: =IF(AND(ISTEXT('Data input'!E5),'Data input'!E5="MBF"),"MBF","CCF")&" per load" -> CCF per load | E6: Tot rtm's per day | F6: Total OT rtm's | G6: =IF(AND(ISTEXT('Data input'!E5),'Data input'!E5="MBF"),"MBF","CCF")&" vol per day" -> CCF vol per day | H6: Gross cost per day | I6: Net cost per day | J6: ="Net cost per "&IF(AND(ISTEXT('Data input'!E5),'Data input'!E5="MBF"),"mbf","ccf") -> Net cost per ccf | K6: ="Net $/"&IF(AND(ISTEXT('Data input'!E5),'Data input'!E5="MBF"),"mbf","ccf")&" w/inflation" -> Net $/ccf w/inflation
B7: w/o scale | C7: =IF(AND(AA11=0,increment>0),increment+rtm,0) -> 0 | D7: =IF(AND(AA11=0,'Data input'!D8>0),'Data input'!$D$8,0) -> 0 | E7: =IF(AND(AA11=0,'Data input'!D8>0),'Cost defaults'!$G$8*60,0) -> 0 | F7: =IF(AND(AA11=0,'Data input'!D8>0),'O_O cost'!AG24*60,0) -> 0 | G7: =IF(AND(AA11=0,C7>0),'O_O cost'!I18*D7,0) -> 0 | H7: =IF(AND(AA11=0,'Data input'!D8>0),E7*'O_O cost'!F26,0) -> 0 | I7: =IF(AA11=0,H7,0) -> 0 | J7: =IF(AND(AA11=0,G7>0),I7/G7,0) -> 0 | K7: =IF(AND(AA11=0,AB11=1,'Data input'!D8>0),J7*(1+'Cost defaults'!$B$8)^'Cost defaults'!$C$8,J7) -> 0
B9: with scale | C9: =IF(AND(AA11=1,increment>0),increment+rtm,0) -> 0 | D9: =IF(AND(AA11=1,'Data input'!D8>0),'Data input'!$D$8,0) -> 0 | E9: =IF(AND(AA11=1,'Data input'!D8>0),'Cost defaults'!$G$8*60,0) -> 0 | F9: =IF(AND(AA11=1,'Data input'!D8>0),'O_O cost'!AG24*60,0) -> 0 | G9: =IF(AND(AA11=1,C9>0),'O_O cost'!I18*D9,0) -> 0 | H9: =IF(AND(AA11=1,'Data input'!D8>0),IF('Appr Sum'!D14="No",E9*'O_O cost'!F26,(E9*'O_O cost'!F26)+'Cost defaults'!D8*G9),0) -> 0 | I9: =IF(AND(AA11=1,'Data input'!D8>0),H9/(1-'Cost defaults'!G11),0) -> 0 | J9: =IF(AND(AA11=1,G9>0),I9/G9,0) -> 0 | K9: =IF(AND(AA11=1,AB11=1,'Data input'!D8>0),J9*(1+'Cost defaults'!$B$8)^'Cost defaults'!$C$8,J9) -> 0 | AA9: Conditions…
C10: =IF(AD11=1,"<<Scaling cost is included in the total haul cost/vol below>>","<<Scaling cost is not included in the total haul cost/vol below>>") -> <<Scaling cost is not included in the total haul cost/vol below>> | K10: =IF('Data input'!F8="Yes","Yrs. inflated = "&TEXT('Cost defaults'!C8,"0.0")&" at "&TEXT('Cost defaults'!B8*100,"0.0")&"%",0) -> Yrs. inflated = at 0.0% | AA10: Scale | AB10: Inflate | AC10: Use | AD10: Use2
D11: Include scale cost in final haul cost | I11: =TEXT(increment,"0")&" minutes" -> 0 minutes | AA11: =IF(AND(ISTEXT('Data input'!E8),'Data input'!E8="Yes"),1,0) -> 0 | AB11: =IF(AND(ISTEXT('Data input'!F8),'Data input'!F8="Yes"),1,0) -> 0 | AC11: =IF(AND(ISTEXT('Data input'!E8),'Data input'!E8="Yes"),1,0) -> 0 | AD11: =IF(AND(ISTEXT('Appr Sum'!D14),AC11=1),IF('Appr Sum'!D14="Yes",1,2),3) -> 3
E12: ="Total haul cost, $/"&IF(AND(ISTEXT('Data input'!E5),'Data input'!E5="MBF"),"mbf","ccf")&" = " -> Total haul cost, $/ccf = | G12: =MAXA(J7:K9) -> 0
B13: Volume Type: | K13: Appraisal point: | AA13: Include scale
B14: =IF(ISTEXT('Data input'!$E$5),'Data input'!$E$5,"") ->  | D14: No | F14: Sale or Haul Narrative | K14: =IF(ISTEXT('Data input'!H5),'Data input'!H5,"") ->  | AA14: Yes
D15: =IF(OR(ISBLANK('Data input'!E8),'Data input'!E8="No"),"scaling not selected in Data Input","") -> scaling not selected in Data Input | AA15: No
C17: Scaling total dollar cost/day: | D17: ='Cost defaults'!D8*G9 -> 0

Sheet RTM Calculator
A1: Traveling Round Trip Minutes (RTM's) Calculator
A2: ='Cost defaults'!B2 -> HaulCost ver 22.0
B3: Total traveling RTM's | D3: =SUM(D7:D36) -> 0
B4: Total one-way distance in miles | D4: =SUM(C7:C36) -> 0
A6: Road type segments | B6: Avg. grade in direction of loaded truck | C6: One-way distance in miles | D6: Traveling RTM's
D7: =IF(OR(ISBLANK(A7),C7=0),0,VLOOKUP(A7,$AI$9:$BZ$29,VLOOKUP(B7,$AF$10:$AG$52,2,FALSE),FALSE)*C7) -> 0
D8: =IF(OR(ISBLANK(A8),C8=0),0,VLOOKUP(A8,$AI$9:$BZ$29,VLOOKUP(B8,$AF$10:$AG$52,2,FALSE),FALSE)*C8) -> 0 | AF8: Grade LU table… | AI8: BNG Table, round trip travel times (minutes) per mile based on road type and grade…
D9: 0 | AF9: Grade | AG9: Column | AI9: Grade Percent (+/-) | AJ9: -0.21 | AK9: =AJ9+0.01 -> -0.2 | AL9: =AK9+0.01 -> -0.19 | AM9: -0.18 | AN9: -0.17 | AO9: -0.16 | AP9: -0.15 | AQ9: -0.14 | AR9: -0.13 | AS9: -0.12 | AT9: -0.11 | AU9: -0.1 | AV9: -0.09 | AW9: -0.08 | AX9: -0.07 | AY9: -0.06 | AZ9: -0.05 | BA9: -0.04 | BB9: -0.03 | BC9: -0.02 | BD9: -0.01 | BE9: 5.898059818e-17 | BF9: 0.01 | BG9: 0.02 | BH9: 0.03 | BI9: 0.04 | BJ9: 0.05 | BK9: 0.06 | BL9: 0.07 | BM9: 0.08 | BN9: 0.09 | BO9: 0.1 | BP9: 0.11 | BQ9: 0.12 | BR9: 0.13 | BS9: 0.14 | BT9: 0.15 | BU9: 0.16 | BV9: 0.17 | BW9: 0.18 | BX9: 0.19 | BY9: 0.2 | BZ9: 0.21
D10: 0 | AF10: -0.21 | AG10: 2 | AI10: Paved super elevation hwy or interstate | AJ10: 9.9 | AK10: 9.5 | AL10: 9.1 | AM10: 8.7 | AN10: 8.3 | AO10: 7.9 | AP10: 7.5 | AQ10: 7.1 | AR10: 6.7 | AS10: 6.3 | AT10: 5.9 | AU10: 5.5 | AV10: 5 | AW10: 4.6 | AX10: 4.2 | AY10: 3.8 | AZ10: 3.4 | BA10: 3 | BB10: 2.7 | BC10: 2.6 | BD10: 2.6 | BE10: 2.6 | BF10: 3 | BG10: 3.6 | BH10: 4.7 | BI10: 5.1 | BJ10: 6 | BK10: 6.9 | BL10: 7.7 | BM10: 8.6 | BN10: 9.4 | BO10: 10.3 | BP10: 11.2 | BQ10: 12.1 | BR10: 13 | BS10: 13.9 | BT10: 14.8 | BU10: 15.7 | BV10: 16.6 | BW10: 17.5 | BX10: 18.4 | BY10: 19.3 | BZ10: 20.2
D11: 0 | AF11: =AF10+0.01 -> -0.2 | AG11: =AG10+1 -> 3 | AI11: 2 lane paved, alignment excellent | AJ11: 9.9 | AK11: 9.5 | AL11: 9.1 | AM11: 8.7 | AN11: 8.3 | AO11: 7.9 | AP11: 7.5 | AQ11: 7.1 | AR11: 6.7 | AS11: 6.3 | AT11: 5.9 | AU11: 5.5 | AV11: 5 | AW11: 4.6 | AX11: 4.2 | AY11: 3.8 | AZ11: 3.4 | BA11: 3 | BB11: 2.7 | BC11: 2.6 | BD11: 2.6 | BE11: 2.6 | BF11: 3 | BG11: 3.6 | BH11: 4.3 | BI11: 5.1 | BJ11: 6 | BK11: 6.9 | BL11: 7.7 | BM11: 8.6 | BN11: 9.4 | BO11: 10.3 | BP11: 11.2 | BQ11: 12.1 | BR11: 13 | BS11: 13.9 | BT11: 14.8 | BU11: 15.7 | BV11: 16.6 | BW11: 17.5 | BX11: 18.4 | BY11: 19.3 | BZ11: 20.2
D12: 0 | AF12: =AF11+0.01 -> -0.19 | AG12: =AG11+1 -> 4 | AI12: 2 lane paved, alignment good | AJ12: 9.9 | AK12: 9.5 | AL12: 9.1 | AM12: 8.7 | AN12: 8.3 | AO12: 7.9 | AP12: 7.5 | AQ12: 7.1 | AR12: 6.7 | AS12: 6.3 | AT12: 5.9 | AU12: 5.5 | AV12: 5 | AW12: 4.6 | AX12: 4.2 | AY12: 3.8 | AZ12: 3.4 | BA12: 3 | BB12: 2.9 | BC12: 2.9 | BD12: 2.9 | BE12: 2.9 | BF12: 3.2 | BG12: 3.8 | BH12: 4.3 | BI12: 5.1 | BJ12: 6 | BK12: 6.9 | BL12: 7.7 | BM12: 8.6 | BN12: 9.4 | BO12: 10.3 | BP12: 11.2 | BQ12: 12.1 | BR12: 13 | BS12: 13.9 | BT12: 14.8 | BU12: 15.7 | BV12: 16.6 | BW12: 17.5 | BX12: 18.4 | BY12: 19.3 | BZ12: 20.2
D13: 0 | AF13: -0.18 | AG13: 5 | AI13: 2 lane paved, alignment fair | AJ13: 9.9 | AK13: 9.5 | AL13: 9.1 | AM13: 8.7 | AN13: 8.3 | AO13: 7.9 | AP13: 7.5 | AQ13: 7.1 | AR13: 6.7 | AS13: 6.3 | AT13: 5.9 | AU13: 5.5 | AV13: 5 | AW13: 4.6 | AX13: 4.2 | AY13: 3.8 | AZ13: 3.5 | BA13: 3.4 | BB13: 3.4 | BC13: 3.4 | BD13: 3.4 | BE13: 3.4 | BF13: 3.5 | BG13: 4 | BH13: 4.7 | BI13: 5.3 | BJ13: 6 | BK13: 6.9 | BL13: 7.7 | BM13: 8.6 | BN13: 9.4 | BO13: 10.3 | BP13: 11.2 | BQ13: 12.1 | BR13: 13 | BS13: 13.9 | BT13: 14.8 | BU13: 15.7 | BV13: 16.6 | BW13: 17.5 | BX13: 18.4 | BY13: 19.3 | BZ13: 20.2
D14: 0 | AF14: -0.17 | AG14: 6 | AI14: 1 lane paved, alignment excellent | AJ14: 9.9 | AK14: 9.5 | AL14: 9.1 | AM14: 8.7 | AN14: 8.3 | AO14: 7.9 | AP14: 7.5 | AQ14: 7.1 | AR14: 6.7 | AS14: 6.3 | AT14: 5.9 | AU14: 5.5 | AV14: 5 | AW14: 4.6 | AX14: 4.2 | AY14: 3.8 | AZ14: 3.5 | BA14: 3.3 | BB14: 3.3 | BC14: 3.3 | BD14: 3.3 | BE14: 3.3 | BF14: 3.3 | BG14: 3.9 | BH14: 4.6 | BI14: 6.4 | BJ14: 6 | BK14: 6.8 | BL14: 7.7 | BM14: 8.6 | BN14: 9.4 | BO14: 10.3 | BP14: 11.2 | BQ14: 12.1 | BR14: 13 | BS14: 13.9 | BT14: 14.9 | BU14: 15.7 | BV14: 16.6 | BW14: 17.5 | BX14: 18.4 | BY14: 19.3 | BZ14: 20.2
D15: 0 | AF15: -0.16 | AG15: 7 | AI15: 1 lane paved, alignment good | AJ15: 9.9 | AK15: 9.5 | AL15: 9.1 | AM15: 8.7 | AN15: 8.3 | AO15: 7.9 | AP15: 7.5 | AQ15: 7.1 | AR15: 6.7 | AS15: 6.3 | AT15: 5.9 | AU15: 5.5 | AV15: 5 | AW15: 4.6 | AX15: 4.3 | AY15: 4.2 | AZ15: 4.2 | BA15: 4.2 | BB15: 4.2 | BC15: 4.2 | BD15: 4.2 | BE15: 4.2 | BF15: 4.2 | BG15: 4.3 | BH15: 5 | BI15: 5.6 | BJ15: 6.3 | BK15: 7 | BL15: 7.7 | BM15: 8.6 | BN15: 9.4 | BO15: 10.3 | BP15: 11.2 | BQ15: 12.1 | BR15: 13 | BS15: 13.9 | BT15: 14.9 | BU15: 15.7 | BV15: 16.6 | BW15: 17.5 | BX15: 18.4 | BY15: 19.3 | BZ15: 20.2
D16: 0 | AF16: -0.15 | AG16: 8 | AI16: 1 lane paved, alignment poor | AJ16: 9.9 | AK16: 9.5 | AL16: 9.1 | AM16: 8.7 | AN16: 8.3 | AO16: 7.9 | AP16: 7.5 | AQ16: 7.1 | AR16: 6.7 | AS16: 6.3 | AT16: 5.9 | AU16: 5.5 | AV16: 5.2 | AW16: 5 | AX16: 5 | AY16: 5 | AZ16: 5 | BA16: 5 | BB16: 5 | BC16: 5 | BD16: 5 | BE16: 5 | BF16: 5 | BG16: 5 | BH16: 5.5 | BI16: 6.1 | BJ16: 6.8 | BK16: 7.4 | BL16: 8.1 | BM16: 8.9 | BN16: 9.4 | BO16: 10.3 | BP16: 11.2 | BQ16: 12.1 | BR16: 13 | BS16: 13.9 | BT16: 14.8 | BU16: 15.7 | BV16: 16.6 | BW16: 17.5 | BX16: 18.4 | BY16: 19.3 | BZ16: 20.2
D17: 0 | AF17: -0.14 | AG17: 9 | AI17: 2 lane gravel, alignment excellent | AJ17: 10 | AK17: 9.6 | AL17: 9.2 | AM17: 8.8 | AN17: 8.4 | AO17: 8 | AP17: 7.6 | AQ17: 7.2 | AR17: 6.8 | AS17: 6.4 | AT17: 6 | AU17: 5.6 | AV17: 5.1 | AW17: 4.7 | AX17: 4.3 | AY17: 3.9 | AZ17: 3.4 | BA17: 3 | BB17: 2.8 | BC17: 2.6 | BD17: 2.6 | BE17: 2.8 | BF17: 3.3 | BG17: 3.9 | BH17: 4.5 | BI17: 5.4 | BJ17: 6.3 | BK17: 7.2 | BL17: 8.1 | BM17: 8.9 | BN17: 9.8 | BO17: 10.7 | BP17: 11.6 | BQ17: 12.5 | BR17: 13.4 | BS17: 14.3 | BT17: 15.2 | BU17: 16.1 | BV17: 17 | BW17: 17.9 | BX17: 18.8 | BY17: 19.7 | BZ17: 20.6
D18: 0 | AF18: -0.13 | AG18: 10 | AI18: 2 lane gravel, alignment good | AJ18: 10 | AK18: 9.6 | AL18: 9.2 | AM18: 8.8 | AN18: 8.4 | AO18: 8 | AP18: 7.6 | AQ18: 7.2 | AR18: 6.8 | AS18: 6.4 | AT18: 6 | AU18: 5.6 | AV18: 5.1 | AW18: 4.7 | AX18: 4.3 | AY18: 3.9 | AZ18: 3.4 | BA18: 3.1 | BB18: 2.9 | BC18: 2.9 | BD18: 2.9 | BE18: 3 | BF18: 3.5 | BG18: 4.1 | BH18: 4.7 | BI18: 5.4 | BJ18: 6.3 | BK18: 7.2 | BL18: 8.1 | BM18: 8.9 | BN18: 9.8 | BO18: 10.7 | BP18: 11.6 | BQ18: 12.5 | BR18: 13.4 | BS18: 14.3 | BT18: 15.2 | BU18: 16.1 | BV18: 17 | BW18: 17.9 | BX18: 18.8 | BY18: 19.7 | BZ18: 20.6
D19: 0 | AF19: -0.12 | AG19: 11 | AI19: 2 lane gravel, alignment fair | AJ19: 10 | AK19: 9.9 | AL19: 9.2 | AM19: 8.8 | AN19: 8.4 | AO19: 8 | AP19: 7.6 | AQ19: 7.2 | AR19: 6.8 | AS19: 6.4 | AT19: 6 | AU19: 5.6 | AV19: 5.1 | AW19: 4.7 | AX19: 4.3 | AY19: 3.9 | AZ19: 3.6 | BA19: 3.4 | BB19: 3.4 | BC19: 3.4 | BD19: 3.4 | BE19: 3.4 | BF19: 3.8 | BG19: 4.4 | BH19: 5 | BI19: 5.7 | BJ19: 6.3 | BK19: 7.2 | BL19: 8.1 | BM19: 8.9 | BN19: 9.8 | BO19: 10.7 | BP19: 11.6 | BQ19: 12.5 | BR19: 13.4 | BS19: 14.3 | BT19: 15.2 | BU19: 16.1 | BV19: 17 | BW19: 17.9 | BX19: 18.8 | BY19: 19.7 | BZ19: 20.6
D20: 0 | AF20: -0.11 | AG20: 12 | AI20: 1 lane gravel with turn-outs and ditch, alignment excellent | AJ20: 10 | AK20: 9.6 | AL20: 9.2 | AM20: 8.8 | AN20: 8.4 | AO20: 8 | AP20: 7.6 | AQ20: 7.2 | AR20: 6.8 | AS20: 6.4 | AT20: 6 | AU20: 5.6 | AV20: 5.1 | AW20: 4.7 | AX20: 4.3 | AY20: 3.9 | AZ20: 3.6 | BA20: 3.4 | BB20: 3.4 | BC20: 3.4 | BD20: 3.4 | BE20: 3.4 | BF20: 3.7 | BG20: 4.2 | BH20: 4.9 | BI20: 5.6 | BJ20: 6.3 | BK20: 7.2 | BL20: 8.1 | BM20: 8.9 | BN20: 9.8 | BO20: 10.7 | BP20: 11.6 | BQ20: 12.5 | BR20: 13.4 | BS20: 14.3 | BT20: 15.2 | BU20: 16.1 | BV20: 17 | BW20: 17.9 | BX20: 18.8 | BY20: 19.7 | BZ20: 20.6
D21: 0 | AF21: -0.1 | AG21: 13 | AI21: 1 lane gravel with turn-outs and ditch, alignment good | AJ21: 10 | AK21: 9.6 | AL21: 9.2 | AM21: 8.8 | AN21: 8.4 | AO21: 8 | AP21: 7.6 | AQ21: 7.2 | AR21: 6.8 | AS21: 6.4 | AT21: 6 | AU21: 5.6 | AV21: 5.1 | AW21: 4.7 | AX21: 4.5 | AY21: 4.2 | AZ21: 4.2 | BA21: 4.2 | BB21: 4.2 | BC21: 4.2 | BD21: 4.2 | BE21: 4.2 | BF21: 4.2 | BG21: 4.6 | BH21: 5.3 | BI21: 6 | BJ21: 6.6 | BK21: 7.3 | BL21: 8.1 | BM21: 8.9 | BN21: 9.8 | BO21: 10.7 | BP21: 11.6 | BQ21: 12.5 | BR21: 13.4 | BS21: 14.3 | BT21: 15.2 | BU21: 16.1 | BV21: 17 | BW21: 17.9 | BX21: 18.8 | BY21: 19.7 | BZ21: 20.6
D22: 0 | AF22: -0.09 | AG22: 14 | AI22: 1 lane gravel with turn-outs and ditch, alignment fair | AJ22: 10 | AK22: 9.6 | AL22: 9.2 | AM22: 8.8 | AN22: 8.4 | AO22: 8 | AP22: 7.6 | AQ22: 7.2 | AR22: 6.8 | AS22: 6.4 | AT22: 6 | AU22: 5.6 | AV22: 5.3 | AW22: 5.1 | AX22: 5.1 | AY22: 5.1 | AZ22: 5.1 | BA22: 5.1 | BB22: 5.1 | BC22: 5.1 | BD22: 5.1 | BE22: 5.1 | BF22: 5.1 | BG22: 5.1 | BH22: 5.8 | BI22: 6.4 | BJ22: 7.1 | BK22: 7.8 | BL22: 8.5 | BM22: 9.1 | BN22: 9.8 | BO22: 10.7 | BP22: 11.6 | BQ22: 12.5 | BR22: 13.4 | BS22: 14.3 | BT22: 15.2 | BU22: 16.1 | BV22: 17 | BW22: 17.9 | BX22: 18.8 | BY22: 19.7 | BZ22: 20.6
D23: 0 | AF23: -0.08 | AG23: 15 | AI23: 1 lane gravel with turn-outs and ditch, alignment poor | AJ23: 9.3 | AK23: 9 | AL23: 8.7 | AM23: 8.4 | AN23: 8.1 | AO23: 7.8 | AP23: 7.5 | AQ23: 7.2 | AR23: 6.9 | AS23: 6.6 | AT23: 6.3 | AU23: 6.1 | AV23: 6.1 | AW23: 6.1 | AX23: 6.1 | AY23: 6.1 | AZ23: 6.1 | BA23: 6.1 | BB23: 6.1 | BC23: 6.1 | BD23: 6.1 | BE23: 6.1 | BF23: 6.1 | BG23: 6.1 | BH23: 6.3 | BI23: 7 | BJ23: 7.6 | BK23: 8.3 | BL23: 9 | BM23: 9.6 | BN23: 10.3 | BO23: 11 | BP23: 11.7 | BQ23: 12.4 | BR23: 13.1 | BS23: 13.8 | BT23: 14.5 | BU23: 15.2 | BV23: 15.9 | BW23: 16.6 | BX23: 17.3 | BY23: 18 | BZ23: 18.7
D24: 0 | AF24: -0.07 | AG24: 16 | AI24: 1 lane dirt with turn-outs and ditch, alignment good | AJ24: 11.1 | AK24: 10.6 | AL24: 10.1 | AM24: 9.6 | AN24: 9.1 | AO24: 8.6 | AP24: 8.1 | AQ24: 7.6 | AR24: 7.1 | AS24: 6.6 | AT24: 6.1 | AU24: 5.7 | AV24: 5.3 | AW24: 4.8 | AX24: 4.5 | AY24: 4.3 | AZ24: 4.2 | BA24: 4.2 | BB24: 4.2 | BC24: 4.2 | BD24: 4.2 | BE24: 4.2 | BF24: 4.3 | BG24: 4.9 | BH24: 5.6 | BI24: 6.3 | BJ24: 6.9 | BK24: 7.6 | BL24: 8.3 | BM24: 9.2 | BN24: 10.1 | BO24: 11 | BP24: 11.9 | BQ24: 12.8 | BR24: 13.7 | BS24: 14.6 | BT24: 15.5 | BU24: 16.4 | BV24: 17.3 | BW24: 18.2 | BX24: 19.1 | BY24: 20 | BZ24: 20.9
D25: 0 | AF25: -0.06 | AG25: 17 | AI25: 1 lane dirt with turn-outs and ditch, alignment fair | AJ25: 11.1 | AK25: 10.6 | AL25: 10.1 | AM25: 9.6 | AN25: 9.1 | AO25: 8.6 | AP25: 8.1 | AQ25: 7.6 | AR25: 7.1 | AS25: 6.6 | AT25: 6.1 | AU25: 5.7 | AV25: 5.5 | AW25: 5.2 | AX25: 5.1 | AY25: 5.1 | AZ25: 5.1 | BA25: 5.1 | BB25: 5.1 | BC25: 5.1 | BD25: 5.1 | BE25: 5.1 | BF25: 5.1 | BG25: 5.4 | BH25: 6 | BI25: 6.7 | BJ25: 7.4 | BK25: 8.1 | BL25: 8.8 | BM25: 9.4 | BN25: 10.1 | BO25: 11 | BP25: 11.9 | BQ25: 12.8 | BR25: 13.7 | BS25: 14.6 | BT25: 15.5 | BU25: 16.4 | BV25: 17.3 | BW25: 18.2 | BX25: 19.1 | BY25: 20 | BZ25: 20.9
D26: 0 | AF26: -0.05 | AG26: 18 | AI26: 1 lane dirt with turn-outs and ditch, alignment poor | AJ26: 8.5 | AK26: 8.3 | AL26: 8.1 | AM26: 7.9 | AN26: 7.7 | AO26: 7.5 | AP26: 7.3 | AQ26: 7.1 | AR26: 6.9 | AS26: 6.7 | AT26: 6.5 | AU26: 6.2 | AV26: 6.1 | AW26: 6.1 | AX26: 6.1 | AY26: 6.1 | AZ26: 6.1 | BA26: 6.1 | BB26: 6.1 | BC26: 6.1 | BD26: 6.1 | BE26: 6.1 | BF26: 6.1 | BG26: 6.1 | BH26: 6.6 | BI26: 7.2 | BJ26: 7.9 | BK26: 8.6 | BL26: 9.3 | BM26: 10 | BN26: 10.6 | BO26: 11.3 | BP26: 12 | BQ26: 12.7 | BR26: 13.4 | BS26: 14.1 | BT26: 14.8 | BU26: 15.5 | BV26: 16.2 | BW26: 16.9 | BX26: 17.6 | BY26: 18.3 | BZ26: 19
D27: 0 | AF27: -0.04 | AG27: 19 | AI27: 1 lane dirt with turn-outs, alignment good | AJ27: 11.1 | AK27: 10.6 | AL27: 10.1 | AM27: 9.6 | AN27: 9.1 | AO27: 8.6 | AP27: 8.1 | AQ27: 7.6 | AR27: 7.1 | AS27: 6.6 | AT27: 6.1 | AU27: 5.7 | AV27: 5.3 | AW27: 4.8 | AX27: 4.6 | AY27: 4.3 | AZ27: 4.3 | BA27: 4.3 | BB27: 4.3 | BC27: 4.3 | BD27: 4.3 | BE27: 4.3 | BF27: 4.4 | BG27: 5 | BH27: 5.7 | BI27: 6.3 | BJ27: 7 | BK27: 7.7 | BL27: 8.4 | BM27: 9.2 | BN27: 10.1 | BO27: 11 | BP27: 11.9 | BQ27: 12.8 | BR27: 13.7 | BS27: 14.6 | BT27: 15.5 | BU27: 16.4 | BV27: 17.3 | BW27: 18.2 | BX27: 19.1 | BY27: 20 | BZ27: 20.9
D28: 0 | AF28: -0.03 | AG28: 20 | AI28: 1 lane dirt with turn-outs, alignment fair | AJ28: 11.1 | AK28: 10.6 | AL28: 10.1 | AM28: 9.6 | AN28: 9.1 | AO28: 8.6 | AP28: 8.1 | AQ28: 7.6 | AR28: 7.1 | AS28: 6.6 | AT28: 6.1 | AU28: 5.8 | AV28: 5.6 | AW28: 5.3 | AX28: 5.3 | AY28: 5.3 | AZ28: 5.3 | BA28: 5.3 | BB28: 5.3 | BC28: 5.3 | BD28: 5.3 | BE28: 5.3 | BF28: 5.3 | BG28: 5.5 | BH28: 6.2 | BI28: 6.9 | BJ28: 7.6 | BK28: 8.2 | BL28: 8.9 | BM28: 9.6 | BN28: 10.3 | BO28: 11 | BP28: 11.7 | BQ28: 12.4 | BR28: 13.1 | BS28: 13.8 | BT28: 14.5 | BU28: 15.2 | BV28: 15.9 | BW28: 16.6 | BX28: 17.3 | BY28: 18 | BZ28: 18.7
D29: 0 | AF29: -0.02 | AG29: 21 | AI29: 1 lane dirt with turn-outs, alignment poor | AJ29: 8.9 | AK29: 8.7 | AL29: 8.5 | AM29: 8.3 | AN29: 8.1 | AO29: 7.9 | AP29: 7.7 | AQ29: 7.5 | AR29: 7.3 | AS29: 7.1 | AT29: 6.9 | AU29: 6.9 | AV29: 6.9 | AW29: 6.9 | AX29: 6.9 | AY29: 6.9 | AZ29: 6.9 | BA29: 6.9 | BB29: 6.9 | BC29: 6.9 | BD29: 6.9 | BE29: 6.9 | BF29: 6.9 | BG29: 6.9 | BH29: 6.9 | BI29: 7.6 | BJ29: 8.3 | BK29: 9 | BL29: 9.6 | BM29: 10.3 | BN29: 11 | BO29: 11.7 | BP29: 12.4 | BQ29: 13.1 | BR29: 13.8 | BS29: 14.5 | BT29: 15.2 | BU29: 15.9 | BV29: 16.6 | BW29: 17.3 | BX29: 18 | BY29: 18.7 | BZ29: 19.4
D30: 0 | AF30: -0.01 | AG30: 22
D31: 0 | AF31: 5.898059818e-17 | AG31: 23
D32: 0 | AF32: 0.01 | AG32: 24
D33: 0 | AF33: 0.02 | AG33: 25
D34: 0 | AF34: 0.03 | AG34: 26
D35: 0 | AF35: 0.04 | AG35: 27
D36: 0 | AF36: 0.05 | AG36: 28
AF37: 0.06 | AG37: 29
AF38: 0.07 | AG38: 30
AF39: 0.08 | AG39: 31
AF40: 0.09 | AG40: 32
AF41: 0.1 | AG41: 33
AF42: 0.11 | AG42: 34
AF43: 0.12 | AG43: 35
AF44: 0.13 | AG44: 36
AF45: 0.14 | AG45: 37
AF46: 0.15 | AG46: 38
AF47: 0.16 | AG47: 39
AF48: 0.17 | AG48: 40
AF49: 0.18 | AG49: 41
AF50: 0.19 | AG50: 42
AF51: 0.2 | AG51: 43
AF52: 0.21 | AG52: 44

Sheet Trucks
B1: Truck Pictures
A2: ='Cost defaults'!B2 -> HaulCost ver 22.0
B15: Truck w/5th wheel | G15: Truck-trailer, standard stinger-steer | L15: Truck-tractor, 5 axles, Detactable Loader
G16: 18 tires, western US | L16: 18 tires
B30: Truck-tractor, 4 axles, (tri axle) | G30: Truck-tractor, 6 axles, w/detachable loader | L30: Truck-tractor, 7 axles, detachable loader
B31: 14 tires | G31: 22 tires | L31: 20 tires, 3 dual tire axles + 3 single tire axles
B45: Truck-tractor, 3 axles, tandom axle
B46: 10 tires

Sheet Trailers
B1: Trailer & Loader Pictures
A2: ='Cost defaults'!B2 -> HaulCost ver 22.0
B16: Trailer, 5 axles | G16: Tri axle with 2 axle pup, w/attached loader | L16: Trailer–crib, 3 axles
B30: Trailer–crib, 8 axles (similar to 7 axles) | G30: Michigan trailer-crib, 7axles | L30: Trailer–crib, 3 axles
B45: Trailer-pup, 4 axles | G45: Trailer-pup, 3 axles | L45: Attachable loader

Sheet Definitions
A1: TRUCKING APPRAISAL - DEFINITIONS
A2: ='Cost defaults'!B2 -> HaulCost ver 22.0
A4: Term Used | B4: Definition | C4: Where Found (tabs)
A5: .xxx | B5: data input as a percentage, i.e. .050 = 5.0% | C5: Cost defaults tab
A6: aai-$ | B6: average annual investment | C6: O_O cost tab
A7: attached loader | B7: a log loader that can be easily attached to the truck - eastern US | C7: Data input tab, Cost defaults tab
A8: ccf or mbf | B8: wood volume expressed in 100's of cubic feet (cunits) or mbf (1,000's of board feet) | C8: Data input tab, Cost defaults tab, Appr summary tab
A9: ccf or mbf per load | B9: the average volume (in 100's of cubic feet or 1,000's of board feet) loaded on a truck | C9: Data input tab, Appr summary tab
A10: ccf or mbf vol per day | B10: the amount of volume hauled per day (1 truck) in ccf or mbf | C10: Appr summary tab
A11: fuel & lube | B11: the cost (expressed here as $/mile) of fuel and lubrication for equipment | C11: O_O cost tab
A12: geographic area | B12: state the haul process takes place in primarily (for labor rates) | C12: Data input tab, Cost defaults tab, Appr summary tab
A13: gross cost per day | B13: the total dollar haul cost spent per day on the average (gross scale) | C13: Appr summary tab
A14: hours per day | B14: the average number of hours per day spent hauling logs | C14: Cost defaults tab
A15: HVUT | B15: heavy vehicle use tax (federal on public roads) | C15: O_O cost tab
A16: inflation (inflate) | B16: higher prices as a result of an expanding supply of money | C16: Data input tab, Cost defaults tab, Appr summary tab
A17: ins, tax, lic-% | B17: insurance, taxes, and license percentage (of aai-$) | C17: O_O cost tab
A18: maint & repair | B18: the cost (expressed here as $/mile) of maintaining and repairing equipment | C18: O_O cost tab
A19: mm/dd/yy | B19: date format for input, i.e. 04/10/99 | C19: Data Input tab
A20: net cost per day | B20: the total dollar haul cost spent per day on the average (net scale) | C20: Appr summary tab
A21: O and O | B21: owning and operating | C21: O_O cost tab
A22: one-way mileage | B22: average one-way mileage of a truck making a trip: landing to mill or landing to sort yard | C22: Data input tab
A23: opport cost-% | B23: opportunity cost of invested capital (% of aai-$) | C23: O_O cost tab
A24: overhead | B24: materials and services that are necessary to conduct business | C24: O_O cost tab
A25: overtime (ot) | B25: work preformed in excess of 8 hours | C25: O_O cost tab
A26: puc tax wt-mile | B26: a weight-mile tax imposed by state and/or federal law | C26: Cost defaults tab, O_O cost tab
A27: rtm - average sale (total) | B27: round trip minutes from landing to mill and back to landing (traveling + standing time) | C27: Appr summary tab
A28: rtm - standing | B28: round trip minutes for load, unload, set binders, scaling, etc. (included in total sale rtm's) | C28: Cost defaults tab
A29: rtm - traveling | B29: round trip minutes for traveling from landing to mill and back only (included in total sale rtm's) | C29: Data input tab, Appr summary tab, RTM Calculator tab
A30: salv-% | B30: salvage value of equipment in percent | C30: O_O cost tab
A31: scaling | B31: the measurement of hauled volume, usually on the truck | C31: Data input tab, Cost defaults tab, Appr summary tab
A32: scaling defect | B32: log defect on the truck detected during the scale process (if applicable) | C32: Data input tab
A33: self-loader, stinger-steer | B33: a kind of self-loader usually used in the western US on a stinger-steer truck | C33: Data input tab, Cost defaults tab
A34: sensitivity analysis | B34: the process of changing a variable(s) and its effect on final cost, "what-if" | C34: Appr summary tab
A35: standing cost | B35: the sum of ownership and labor costs | C35: O_O cost tab
A36: stinger-steer | B36: a truck-trailer combination commonly used in the western US | C36: Data input tab
A37: trailer damage | B37: an allowance for damage to the trailer from loading and hauling (% of aai-$) | C37: O_O cost tab
A38: traveling cost | B38: the sum of ownership, labor, and operating costs | C38: O_O cost tab

Sheet Help
A1: TRUCKING APPRAISAL - HELP
A2: ='Cost defaults'!B2 -> HaulCost ver 22.0
A4: The following are brief instructions by worksheet tab or screen (Data Input, Cost Defaults, etc.). Note that valid inputs can be made
A5: into colored cells or cell dropdown lists. Use the DELETE key to erase entries. NEVER USE the SPACE BAR to erase entries.
A6: Cells that could possibly have input or selection, will flash a brief description when selected. Cells with a "red dot" in the upper
A7: right-hand corner contain a comment or information about input requirements (hover the cursor over the "red dot" to view info).
A9: The Haul Cost Spreadsheet is organized into a series of screens (or tabs) located at the top of the screen. The user can
A10: move from tab to tab by left clicking on the tab with the mouse pointer. The appraisal is built by moving through each tab or screen
A11: from left to right. Input all necessary data where appropriate. The results of the appraisal can be found in the Appr Summary tab.
A13: Macro Buttons: These buttons are found in each screen. They consist of the following: PRINT and DEFAULTS
B14: (the Defaults Button is found in the Cost Defaults screen only). The user can
B15: activate a macro by left clicking on the appropriate button with the mouse. The PRINT macro will print the
B16: the current screen. The DEFAULTS button will restore the original cost defaults used in the Cost Defaults
B17: screen if overridden. Use the spreadsheet's menu system to save and quit the program
B18: (select FILE from the upper menu bar). The screen may "flicker" when the Print macro is launched - this is normal.
A19: I. Data Input Tab
B20: a. Enter the sale name and date (in mm/dd/yy format) in the colored cells provided.
B21: b. Select the volume type (MBF or CCF) and the geographic area from the cell dropdown lists.
B22: c. Enter traveling round trip minutes (rtm's) from the weighted sale centroid to the mill or appraisal point and back.
B23: This value is normally determined by the engineer doing the road maintenance.
B24: d. Enter the average volume per truck load expressed in net CCF (cunits) or MBF.
B25: e. Indicated whether or not scaling will be done. Select "yes" or "no" from the cell dropdown list. NO SCALING IN R5.
B26: f. Indicate whether the program should inflate the final cost or not. Select "yes" or "no" from the cell dropdown list.
B27: See the support tab for the date of the last update to help make this decision. The inflation rate and the number
B28: of years to inflate are entered in the Cost Defaults screen or accept defaults. Input the average cost for diesel fuel
B29: in the local area in $'s per gallon. Input to average one-way mileage (landing to mill or landing to sort yard)
B30: g. Select a truck or truck trailer combination from the cell dropdown list. The most common configuration in the
B31: western US is a standard "stinger-steer" truck-trailer combination. If this configuration is selected, a trailer selection
B32: is not necessary. If the "truck (w/5th wheel)" is selected, a trailer configuration will be needed (see "h" below).
B33: If any of the other options are selected, the trailer selection is optional.
B34: h. Select a trailer configuration from the cell dropdown list. A trailer configuration is needed if the transport vehicle
B35: selected above is a "tractor (w/5th wheel)". If a trailer is not needed, select "<none>" or leave blank.
B36: i. Select an attached loader, if needed, from the cell dropdown list. If an attached loader is not needed,
B37: select "<none>" or leave blank.
A38: II. Cost Defaults Tab
B39: a. The defaults are shown in the colored cells of the table. No input is required here unless the user wishes to
B40: change a particular default. If a change is desired, over-type the value in the appropriate colored cell and press the
B41: ENTER key. If the inflation option was selected, check the "number of years to inflate" and the "inflation rate"
B42: because the defaults used may be incorrect. Change if necessary.
B43: b. If scaling was selected, check the defaults for "scaling cost per CCF or MBF" and "scaling defect". Change if necessary.
B44: c. The original defaults are shown in the lower table. If the user wants to restore these defaults, left click on the "Defaults"
B45: button next to this table. Scaling cost is for third party scaling.
B46: d. Check Standing RTM's cell. Default=65 rtm's (no scaling), 85 rtm's (with scaling). Change if desired.
A47: III. O_O Cost Tab
B48: a. This screen displays the values used in the appraisal and the calculation of the owning and operating costs
B49: associated with the haul machinery. These cells are protected and should not be changed.
A50: IV. Appr Summary Tab
B51: a. This screen displays the results of the haul cost appraisal.
B52: b. The final appraised cost is displayed in the cell below the table. The appraised value is in dollars per CCF or MBF and
B53: estimates the cost of hauling logs from the landing to the appraisal point (mill) in terms of scaling or not scaling.
B54: c. Select whether or not to include the scaling cost per unit of measure in the final calculated haul cost by selecting "Yes"
B55: or "No" from the blue shaded cell dropdown. Sometimes the scaling cost per unit of measure is included as a separate
B56: cost item in the overall sale appraisal. If this is the case, select "No" in this cell (avoids double-counting the cost).
B57: d. Use the "SCROLL BAR" to change traveling round trip minutes by one minute increments - use for sensitivity analysis.
B58: e. Launch the "create text file" button to create a comma-delimited text file for use in other spreadsheets (i.e. R6-TEA).
A59: V. RTM Calculator Tab
B60: a. Use this tool to estimate the traveling Round Trip Minutes (RTM's) by road segment standards.
A61: VI. Definitions Tab
B62: a. This screen displays the definition of various terms used in the spreadsheet. Also displayed is the screen tab where
B63: the term can be found.
A64: VII. Trucks Tab
B65: a. This screen displays pictures of example truck configurations
A66: VIII. Trailers Tab
B67: a. This screen displays pictures of example trailer configurations
